Cogmind - Beta 11.1 @@@ ROGUE MODE // 2022.07.04 @ 00:14:24 Player: Calazard Result: Core destroyed Performance ------------- Evolutions (2) 1000 Regions Visited (5) 1000 Robots Destroyed (11) 55 Value Destroyed (322) 322 Prototype IDs (24) 480 Alien Tech Used (0) 0 Bonus (350) 350 TOTAL SCORE: 3207 Bonus ------- Follower Combat Kills 57 Aligned with FarCom 300 Friendly Fire -7 Cogmind --------- Core Integrity 0/550 Matter 299/300 Energy 100/100 System Corruption 0% Temperature Cool (0) Movement Core (50) Location -8/Materials Parts ------- > --- POWER (1) -------- (None) > --- PROPULSION (3) --- (None) > --- UTILITY (4) ------ (None) > --- WEAPON (3) ------- (None) > --- INVENTORY (5) ---- Light Ion Engine Fission Core High-capacity Storage Unit Peak State ------------ > --- POWER ------------ Enhanced Nuclear Core > --- PROPULSION ------- Aluminum Leg Aluminum Leg > --- UTILITY ---------- Improved Heat Sink Small Storage Unit Large Battery Small Matter Pod > --- WEAPON ----------- Heavy Ion Cannon Heavy Ion Cannon Grenade Launcher > --- INVENTORY -------- Fission Core High-capacity Storage Unit [Rating: 22] Favorites ----------- Power Light Ion Engine Engine Light Ion Engine Power Core Enhanced Nuclear Core Propulsion Aluminum Leg Leg Aluminum Leg Wheel Wheel Utility Improved Heat Sink Device Improved Heat Sink Storage High-capacity Storage Unit Weapon Light Assault Rifle Energy Gun Particle Gun Energy Cannon Heavy Ion Cannon Ballistic Gun Light Assault Rifle Launcher Grenade Launcher Special Weapon Field Lobotomy Kit Build | -11 -10 -10 -10 -9 -8 ------- Run | Scr Mat Min Exi Min Mat Slots Evolved 4 | . . . . . 4 Power . | . . . . . . Propulsion 1 | . . . . . 1 Utility 2 | . . . . . 2 Weapon 1 | . . . . . 1 Parts Attached 37 | 7 . 5 11 2 12 Power 4 | 1 . 1 1 . 1 Engine 3 | 1 . 1 1 . . Core 1 | . . . . . 1 Reactor . | . . . . . . Propulsion 8 | 3 . 1 2 . 2 Treads . | . . . . . . Leg 4 | . . . 2 . 2 Wheel 4 | 3 . 1 . . . Hover . | . . . . . . Flight . | . . . . . . Utility 13 | 1 . 2 6 1 3 Device 5 | 1 . 1 2 . 1 Storage 8 | . . 1 4 1 2 Processor . | . . . . . . Hackware . | . . . . . . Protection . | . . . . . . Artifact . | . . . . . . Weapon 12 | 2 . 1 2 1 6 Energy Gun 3 | . . . 1 . 2 Energy Cannon 2 | . . . . . 2 Ballistic Gun 5 | 2 . 1 1 . 1 Ballistic Cannon . | . . . . . . Launcher 1 | . . . . . 1 Special Weapon 1 | . . . . 1 . Impact Weapon . | . . . . . . Slashing Weapon . | . . . . . . Piercing Weapon . | . . . . . . Special Melee Weapon . | . . . . . . Unidentified Prototypes 2 | . . . 1 . 1 Parts Lost 17 | . . 3 . 3 11 Power 4 | . . 1 . 1 2 Propulsion 4 | . . . . 1 3 Utility 4 | . . 1 . 1 2 Weapon 5 | . . 1 . . 4 Highest Loss Streak 4 | . . 1 . 3 4 To Critical Strikes . | . . . . . . Average Slot Usage (%) 63 | . 85 85 56 88 40 Engine 3 | . 14 13 . 8 . Leg 18 | . . . 24 23 6 Wheel 6 | . 28 28 3 . . Device 11 | . 14 14 12 8 1 Storage 12 | . . 1 13 18 15 Energy Gun 1 | . . . . 9 3 Ballistic Gun 6 | . 28 27 . 14 1 Naked Turns 4 | . . . . . 4 Heaviest Build 41 | 6 6 8 41 17 29 Greatest Support 20 | 20 20 20 20 20 20 Greatest Overweight (x) 4 | . . . 2 1 4 Average Overweight (x) . | . . . 1 . 1 Largest Inventory Capacity 20 | 5 5 5 20 8 20 Average Capacity 13 | 5 5 5 18 8 7 Most Carried 19 | 5 5 5 19 8 6 Average Carried 11 | 2 4 4 15 7 2 Final Capacity 8 | 5 5 5 8 8 5 Final Carried 8 | 5 5 5 8 7 3 Class Distribution -------------------- 95% | Mutant 4% | Scavenger-Mutant Dominant Class ---------------- Mutant | -10/Materials Mutant | -10/Mines Mutant | -10/Exiles Mutant | -9/Mines Mutant | -8/Materials Resources | -11 -10 -10 -10 -9 -8 ----------- Run | Scr Mat Min Exi Min Mat Matter Collected 793 | 277 . 77 303 66 70 Remotely . | . . . . . . Salvage Created 391 | 60 . 139 . 116 76 Parts 24 | 6 . 8 . 6 4 Haulers Intercepted . | . . . . . . Recyclers Shooed . | . . . . . . Parts Field Recycled . | . . . . . . Retrieved Matter . | . . . . . . Parts Self-Destructed . | . . . . . . Prevented . | . . . . . . Kills | -11 -10 -10 -10 -9 -8 ------- Run | Scr Mat Min Exi Min Mat Combat Hostiles Destroyed 11 | 1 . 5 . 3 2 Melee 1 | . . . . . 1 Guns 9 | 1 . 5 . 3 . Cannons 1 | . . . . . 1 Classes Destroyed 5 | 2 . 2 . . 1 Tunneler 1 | 1 . . . . . Swarmer 3 | . . 2 . . 1 Grunt 6 | 1 . 2 . 3 . Hunter 1 | . . . . . 1 Assembled 1 | . . 1 . . . Best Kill Streak 2 | 2 . 2 . 2 1 Combat Bots Only 2 | 1 . 2 . 2 1 Max Kills in Single Turn 1 | 1 . 1 . 1 1 Gunslinging . | . . . . . . Exploded . | . . . . . . Melee 1 | . . . . . 1 Uniques/NPCs Destroyed . | . . . . . . Combat | -11 -10 -10 -10 -9 -8 -------- Run | Scr Mat Min Exi Min Mat Damage Taken 2123 | 36 7 364 . 507 1209 Core 740 | 12 . 78 . 98 552 Absorbed by Shields . | . . . . . . Core Remaining (%) 59 | 95 . . . 24 . Volleys Fired 68 | 5 . 22 . 17 24 Largest 2 | 2 . 2 . 2 2 Hottest 130 | 40 . 40 . 85 130 Shots Fired 112 | 10 . 43 . 32 27 Gun 107 | 10 . 43 . 31 23 Cannon 4 | . . . . . 4 Launcher . | . . . . . . Special 1 | . . . . 1 . Kinetic 90 | 10 . 43 . 16 21 Thermal 21 | . . . . 15 6 Explosive . | . . . . . . Electromagnetic . | . . . . . . Robot Hit Streak 9 | 4 . 6 . 9 7 Robot Miss Streak 5 | 3 . 5 . 2 3 Penetration Max . | . . . . . . Secondary Targets 2 | . . 1 . 1 . Max Gunslinging Chain 1 | . . 1 . 1 . Shots Hit Robots 65 | 6 . 20 . 25 14 Core Hits 34 | 3 . 15 . 6 10 Critical Kills . | . . . . . . Critical Parts Destroyed . | . . . . . . Critical Strikes . | . . . . . . Melee Attacks . | . . . . . . Impact . | . . . . . . Slashing . | . . . . . . Piercing . | . . . . . . Sneak Attacks . | . . . . . . Combat Hostiles . | . . . . . . Follow-up Attacks . | . . . . . . Damage Inflicted 666 | 54 . 181 . 297 134 Guns 612 | 54 . 180 . 297 81 Cannons 28 | . . . . . 28 Explosions . | . . . . . . Melee . | . . . . . . Ramming 26 | . . 1 . . 25 Kinetic 416 | 54 . 180 . 101 81 Thermal 224 | . . . . 196 28 Explosive . | . . . . . . Electromagnetic . | . . . . . . Impact . | . . . . . . Slashing . | . . . . . . Piercing . | . . . . . . Highest Corruption 6 | . 2 6 6 6 . Average Corruption 5 | . 2 4 6 6 . Corruption Purged . | . . . . . . Corruption Blocked . | . . . . . . Effects 68 | . . 6 45 17 . Message Errors 13 | . . . 12 1 . Matter Fused 21 | . . . 15 6 . Heat Flow Errors 12 | . . 3 7 2 . Energy Discharges 7 | . . 2 3 2 . Data Loss (minor) 7 | . . . 5 2 . Data Loss (major) 4 | . . . 2 2 . Misfires 1 | . . 1 . . . Alerts 1 | . . . 1 . . Weapon Failures 2 | . . . . 2 . Overload Shots . | . . . . . . Overflow Damage . | . . . . . . Projectiles . | . . . . . . Explosions . | . . . . . . Melee . | . . . . . . Knockbacks . | . . . . . . Impact . | . . . . . . Kinetic . | . . . . . . Secondary . | . . . . . . Self-Inflicted Damage 3 | . . . . . 3 Shots . | . . . . . . Rammed 5 | . . 1 . . 4 Targets Rammed 12 | . . 1 . . 11 Kicked 7 | . . . . . 7 Crushed . | . . . . . . Highest Temperature 274 | 6 . 153 234 274 36 Average Temperature 74 | 6 . 61 104 74 21 Received Heat Transfer 552 | 18 . 135 . 282 117 Siege Activations . | . . . . . . Robots Corrupted . | . . . . . . Combat Hostiles . | . . . . . . Parts Fried . | . . . . . . Impact Corruptions . | . . . . . . Robots Melted . | . . . . . . Combat Hostiles . | . . . . . . Parts Melted 3 | . . . . 3 . Heat Transferred 481 | . . . . 444 37 Parts Sabotaged . | . . . . . . Parts Stolen . | . . . . . . Parts Stripped . | . . . . . . Power Chain Reactions . | . . . . . . Missiles Intercepted . | . . . . . . Alert | -11 -10 -10 -10 -9 -8 ------- Run | Scr Mat Min Exi Min Mat Peak Influence 128 | 25 66 128 . 76 68 Initial 25 | . 16 25 . . 7 Average 32 | 4 24 64 . 17 25 Maximum Alert Level . | . . . . . . Low Security (%) 100 | 100 100 100 . 100 100 Level 1 . | . . . . . . Level 2 . | . . . . . . Level 3 . | . . . . . . Level 4 . | . . . . . . Level 5 . | . . . . . . High Security . | . . . . . . Max Security . | . . . . . . Squads Dispatched . | . . . . . . Investigation . | . . . . . . Extermination . | . . . . . . Reinforcement . | . . . . . . Assault . | . . . . . . Garrison . | . . . . . . Intercept . | . . . . . . Searches Triggered . | . . . . . . Construction Impeded . | . . . . . . Haulers Reinforced . | . . . . . . Active Scanning Responses . | . . . . . . Cargo Convoy Interrupts . | . . . . . . Stealth | -11 -10 -10 -10 -9 -8 --------- Run | Scr Mat Min Exi Min Mat Distress Signals 1 | . . . . . 1 Communications Jammed . | . . . . . . Distress Signals . | . . . . . . Times Spotted 33 | 1 3 11 . 6 12 Peak Tracking Total 5 | 1 5 5 . 2 5 Tactical Retreats 5 | . 1 3 . . 1 Traps | -11 -10 -10 -10 -9 -8 ------- Run | Scr Mat Min Exi Min Mat Traps Triggered 1 | . 1 . . . . Indirectly . | . . . . . . Trap Hack Attempts . | . . . . . . Triggered . | . . . . . . Disarmed . | . . . . . . Reprogrammed . | . . . . . . Reused . | . . . . . . Traps Extracted . | . . . . . . Installed . | . . . . . . Triggered . | . . . . . . Exploded 2 | . . . . . 2 Machines | -11 -10 -10 -10 -9 -8 ---------- Run | Scr Mat Min Exi Min Mat Machines Disabled . | . . . . . . Max in Single Turn . | . . . . . . Machines Sabotaged . | . . . . . . Garrisons Compromised . | . . . . . . Overloaded Fab Kills . | . . . . . . Hacking | -11 -10 -10 -10 -9 -8 --------- Run | Scr Mat Min Exi Min Mat Machines Accessed 6 | . 1 . 5 . . Terminals 1 | . 1 . . . . Fabricators . | . . . . . . Repair Stations . | . . . . . . Recycling Units . | . . . . . . Scanalyzers . | . . . . . . Garrison Access . | . . . . . . Total Hacks 52 | . 2 . 50 . . Successful 51 | . 1 . 50 . . Failed 1 | . 1 . . . . Catastrophic . | . . . . . . Database Lockouts . | . . . . . . Manual 1 | . . . 1 . . Terminals 2 | . 2 . . . . Fabricators . | . . . . . . Repair Stations . | . . . . . . Recycling Units . | . . . . . . Scanalyzers . | . . . . . . Garrison Access . | . . . . . . Terminal Hacks 51 | . 1 . 50 . . Record 49 | . . . 49 . . Zone Layout 1 | . 1 . . . . EX-Prototype ID Bank 1 | . . . 1 . . Fabricator Hacks . | . . . . . . Repair Station Hacks . | . . . . . . Recycling Unit Hacks . | . . . . . . Scanalyzer . | . . . . . . Garrison Access Hacks . | . . . . . . Unauthorized Hacks . | . . . . . . Terminals . | . . . . . . Fabricators . | . . . . . . Repair Stations . | . . . . . . Recycling Units . | . . . . . . Scanalyzers . | . . . . . . Garrison Access . | . . . . . . Data Cores Recovered . | . . . . . . Used . | . . . . . . Hacking Detections 1 | . 1 . . . . Full Trace Events . | . . . . . . Feedback Events . | . . . . . . Feedback Blocked . | . . . . . . Robot Schematics Acquired . | . . . . . . Robots Built . | . . . . . . Authchips . | . . . . . . Time . | . . . . . . Total Robot Build Rating . | . . . . . . Part Schematics Acquired . | . . . . . . Parts Built . | . . . . . . Authchips . | . . . . . . Time . | . . . . . . Total Part Build Rating . | . . . . . . Parts Repaired . | . . . . . . Time . | . . . . . . Parts Recycled . | . . . . . . Recycled Matter . | . . . . . . Retrieved Matter . | . . . . . . Retrieved Components . | . . . . . . Parts Scanalyzed . | . . . . . . Part Schematics Acquired . | . . . . . . Parts Damaged . | . . . . . . Bothacking | -11 -10 -10 -10 -9 -8 ------------ Run | Scr Mat Min Exi Min Mat Used RIF Installer . | . . . . . . Robots Hacked . | . . . . . . Non-combat . | . . . . . . Combat . | . . . . . . Robot Hacks Applied . | . . . . . . Relay Couplers Released . | . . . . . . Fabnet Peak Effective % . | . . . . . . Robots Rewired . | . . . . . . Allies Hacked . | . . . . . . Hacks Repelled . | . . . . . . Allies | -11 -10 -10 -10 -9 -8 -------- Run | Scr Mat Min Exi Min Mat Total Allies 3 | . . 2 . 1 . Largest Group 2 | . . 2 . 1 1 Highest-Rated Group 50 | . . 50 . 8 8 Highest-Rated Ally 31 | . . 31 . 8 8 Total Orders 4 | . . . . 2 2 STAY 2 | . . . . 1 1 ROAM 1 | . . . . . 1 FOLLOW 1 | . . . . 1 . Ally Attacks 28 | . . 19 . 8 1 Total Damage 335 | . . 266 . 69 . Kills 6 | . . 4 . 2 . Allies Corrupted . | . . . . . . Allies Melted 1 | . . 1 . . . Field Lobotomies 1 | . . . . 1 . Intel | -11 -10 -10 -10 -9 -8 ------- Run | Scr Mat Min Exi Min Mat Robot Analysis Total . | . . . . . . Derelict Logs Recovered 3 | . . 2 . 1 . Drone Launches . | . . . . . . Drone Recoveries . | . . . . . . Exploration | -11 -10 -10 -10 -9 -8 ------------- Run | Scr Mat Min Exi Min Mat Turns Passed 3288 | 83 87 377 1950 468 323 Spaces Moved 1745 | 73 107 373 948 117 127 Core 63 | 17 . . . . 46 Treads . | . . . . . . Legs 889 | . . . 691 117 81 Wheels 793 | 56 107 373 257 . . Hover . | . . . . . . Flight . | . . . . . . Fastest Speed 50 | 50 80 80 80 120 50 Average Speed 158 | 73 80 80 200 166 187 Slowest Speed 260 | 80 80 80 260 190 250 Overloaded Moves . | . . . . . . Propulsion Burnouts . | . . . . . . Robots Hopped . | . . . . . . Cave-ins Triggered . | . . . . . . Exploration Rate (%) 35 | 7 26 51 94 24 11 Regions Visited 5 Branch Regions 3 Pre-discovered Areas 3 | . . 1 1 1 . Known Exits Taken 1 | . . 1 . . . Unknown Exits Taken 4 | 1 1 . 1 1 . Scrap Searched . | . . . . . . Spaces Dug . | . . . . . . Terrain Destroyed 3 | . . . . . 3 Melee . | . . . . . . Projectile 3 | . . . . . 3 AOE . | . . . . . . Terrain Rammed . | . . . . . . Walls Destroyed . | . . . . . . Machines Disabled . | . . . . . . Actions | -11 -10 -10 -10 -9 -8 --------- Run | Scr Mat Min Exi Min Mat Total 2166 | 93 108 417 999 359 190 Wait 242 | . . 12 6 224 . Move 1740 | 72 106 372 947 116 127 Hop . | . . . . . . Pick Up 44 | 9 1 2 25 . 7 Fast Attach 8 | 1 . 2 2 . 3 Attach 22 | 5 . 1 5 1 10 Detach 1 | . . . . . 1 Swap 8 | 1 . 2 4 1 . Drop 22 | . 1 3 10 . 8 Fire 68 | 5 . 22 . 17 24 Melee . | . . . . . . Ram 4 | . . 1 . . 3 Kick 7 | . . . . . 7 Crush . | . . . . . . Escape Stasis . | . . . . . . Rewire . | . . . . . . Trap . | . . . . . . Miscellaneous . | . . . . . . Route ------- -11/Scrapyard -10/Materials -10/Mines (discovered 3 exits: [*Mat x2] / *Exi) -10/Exiles (discovered 2 exits: [*Min x2]) -9/Mines -8/Materials History --------- Turn | Location | Event 2 | -11/Scrapyard | Met Revision 17 54 | -11/Scrapyard | Discovered new exit (range 8) 84 | -11/Scrapyard | Entered Materials 164 | -10/Materials | Discovered new exit (range 8) 171 | -10/Materials | Entered Mines 209 | -10/Mines | Identified exit to Exiles 262 | -10/Mines | Assembled infested the area 315 | -10/Mines | Build established: Mutant 359 | -10/Mines | Discovered new exit (range 9) 435 | -10/Mines | Discovered new exit (range 8) 442 | -10/Mines | Learned location of Zion (-7) 545 | -10/Mines | Deemed a non-threat by the Exiles lab entrance 548 | -10/Mines | Entered Exiles 560 | -10/Exiles | Discovered new exit (range 15) 587 | -10/Exiles | Met 8R-AWN 600 | -10/Exiles | Met EX-HEX 820 | -10/Exiles | Met EX-DEC 867 | -10/Exiles | Visited The Gauntlet 1436 | -10/Exiles | Discovered new exit (range 11) 1603 | -10/Exiles | Met EX-BIN 2157 | -10/Exiles | Aligned with FarCom system 2160 | -10/Exiles | Given EX-Vault access code 2220 | -10/Exiles | Opened EX-Vault 2235 | -10/Exiles | Found Prototype Device 2236 | -10/Exiles | Identified Skeleton Box 2254 | -10/Exiles | Found Field Lobotomy Kit 2295 | -10/Exiles | Warned to stay clear of 0b10 Research branches 2498 | -10/Exiles | Left Exiles lab with Field Lobotomy Kit 2498 | -10/Exiles | Entered Mines 2521 | -9/Mines | Excavation squad dispatched 2521 | -9/Mines | A large section of the Mines collapsed 2748 | -9/Mines | Core integrity fell below 50% 2771 | -9/Mines | Excavation squad dispatched 2832 | -9/Mines | Assimilated G-34 Mercenary with FLK Orb 2840 | -9/Mines | Lost 3 parts (1p1n1u) 2876 | -9/Mines | Discovered new exit (range 15) 2966 | -9/Mines | Entered Materials 2966 | -8/Materials | Accompanied by 1 ally 2966 | -8/Materials | Evolved 4 slots: Propulsion x1, Utility x2, Weapon x1 3031 | -8/Materials | Lost 3 parts (1n2w) 3168 | -8/Materials | Lost 4 parts (1p1n1u1w) 3197 | -8/Materials | Core integrity fell below 50% 3265 | -8/Materials | Core integrity fell below 20% 3289 | -8/Materials | Core destroyed Last Messages --------------- 03258_ Penetrated by Slug. 03259_ U-05 Engineer builds a Door. 03261_ Slug penetrates Wall. 03264_ Penetrated by Slug. 03264_ U-05 Engineer builds a Door. 03267_ Penetrated by Slug. 03268_ U-05 Engineer builds a Door. 03270_ Enh. Nuclear Core destroyed. 03273_ Slug penetrates Wall. 03282_ Penetrated by Slug. 03282_ Sml. Storage Unit destroyed. 03285_ Penetrated by Slug. 03285_ Lgt. Assault Rifle destroyed. 03285_ Material Compactor disabled. 03286_ Slammed into H-55 Commando. 03288_ U-05 Engineer builds a Door. 03288_ Slammed into H-55 Commando. 03289_ H-55 Commando destroyed. [Achievement: Fist Fight] 03289_ Destabilizing: Core damaged (-5). Map ----- +----------------------------------------------------+ | ?????????????? ???????????# # *"" | | ??????????????!???????????# # """ | | ??????????????!???????????+ # """ | | ??????????????!?????????? # # """ | | ???????????????????????? # / "" | | ???????????????????????? ?# # | | ???????????????????????" ?## ## | | ??????????????????????""???# ######## | | ????????????????????? ????# #??????? | | ??????????????????????#????# #??????? | | ?????????????????????#######/##?????? | | ?????????????????????# #?????? | | ?????????????????????# #?????? | | ????????????"""??????# #?????? | | ????????????"""??????# #?????? | | ????????????"""??????# #?????? | | ????????????" "??????# #?????? | | ???????????? ??????# #?????? | | ???????????? ??????# #?????? | | ???????????? ??????# #?????? | | ??????????###+##?????######+###?????? | | ??????????# u########## ### ##?? | | ??????????# #?? | | ??????????# T + | | ??????????# ### ######! ##+###?? | | ??????????##@ ####+###??######??????? | | ???????????#%[# #??????????????? | | ???????????#[ +%""" #??????????????? | | ???????????# # """ #??????????????? | | ????????#### # """ #??????????????? | | ????????# # w#??????????????? | | ????????# + #??????????????? | | ????????##############??????????????? | | ????????????????????????????????????? | | ????????????????????????????????????? | | ????????????????????????????????????? | | ????????????????????????????????????? | | | | | | | | | | | | | | | | | | | | | | | | | | | +----------------------------------------------------+ Best States ------------- Heat Dissipation 45 Energy Generation 17 Energy Capacity 500 Matter Stores 436 Matter Capacity 450 Sight Range 16 Terrain Scan Density 10 Evasion (%) 55 Item Schematics ----------------- None Robot Schematics ------------------ None Fabricated ------------ Nothing Alien Tech Used ----------------- None Achievements -------------- Fist Fight I Survived The Infestation Librarian Storm Trooper Tourist Challenges ------------ None Game ------ Seed GyrokineticEnergyExoskeleton Manual? 0 Play Time 00:50:04 Cumulative 3.8 hours Start 2022.07.03 @ 23:20:50 End 2022.07.04 @ 00:14:24 Sessions 1 Manual Loads 0 Difficulty Rogue Special Mode None Game No. 3 Rogue 3 Adventurer 0 Explorer 0 Win Type - Total 0 Types 0/0/0/0/0/0/0/0/0 Lore% 10 Gallery% 5 Achievement% 6 Wizard Run 0 Options --------- ASCII 0 Keyboard 0 Movement Numpad Keybinds 0 Fullscreen 1 Font 16/Terminus Map View 76x50 Tactical HUD 1 Map Filters NONE Filters NONE Steam 1 RUN: 52da3c13-9a29-4dcf-8f7f-afe1477e7fb3